bitfinex/quotes_ETHUSD_20250620
["timestamp","ask_amount","ask_price","bid_price","bid_amount"]
[1750440856490,0.05197682,2405.4,2404.7,4.15840926]
[1750440856675,0.05197682,2405.4,2404.5,0.0563]
[1750440856676,11.942,2405.3,2404.5,0.0563]
[1750440856875,13.17738056,2405.2,2404.5,0.0563]
[1750440857090,13.12539768,2405.2,2404.5,0.0563]
[1750440857296,11.926,2405.1,2404.5,4.21500344]
[1750440857475,5.82867,2404.9,2404.0,0.0563]
[1750440857678,12.30454282,2404.8,2404.0,0.0563]
[1750440857911,1.63999995,2404.7,2403.1,4.16129166]
[1750440858086,1.28245894,2404.7,2404.1,4.15952273]
[1750440858285,0.05200466,2404.7,2404.0,4.15962331]
[1750440858516,0.05199089,2404.6,2404.4,0.0563]
[1750440858688,0.0519885,2404.9,2404.4,0.0563]
[1750440858894,4.15864417,2404.7,2403.5,4.21689912]
[1750440859089,1.19939768,2405.2,2404.4,4.15902461]
[1750440859399,0.05198047,2405.1,2404.7,4.15849304]
[1750440859580,0.05198028,2405.5,2404.3,0.0563]
[1750440859916,10.1759864,2405.9,2404.9,0.0563]
[1750440859917,0.05197787,2405.8,2404.9,0.0563]
[1750440860077,16.0298589,2405.7,2405.0,4.15799586]
[1750440860287,0.05197293,2405.6,2405.2,4.15750391]
[1750440860485,0.05197293,2405.6,2404.9,0.0563]
[1750440860685,11.88897293,2405.6,2405.0,4.15785229]
[1750440861015,1.18889729,2405.5,2404.7,0.0563]
[1750440861178,11.837,2405.6,2405.3,0.0563]
[1750440861376,11.30063002,2405.4,2403.7,0.9912]
[1750440861579,5.82867,2405.2,2403.9,0.0563]
[1750440861781,11.86799386,2405.1,2403.9,0.0563]
[1750440861978,5.82867,2404.6,2403.1,0.0563]
[1750440862202,0.355584,2404.5,2403.1,0.0563]
[1750440862424,10.0,2404.1,2403.1,0.0563]
[1750440862734,0.05201193,2404.0,2402.5,4.16216426]
[1750440863034,4.16025914,2403.7,2402.6,4.16210959]
[1750440863321,0.05201065,2403.8,2403.5,0.0563]
[1750440863526,11.79,2404.2,2403.1,0.0563]
[1750440863695,4.1599322,2403.9,2403.2,4.16101635]
[1750440863896,4.16053364,2403.6,2402.9,4.16160337]
[1750440864096,0.05201624,2403.5,2402.6,5.18289726]
[1750440864298,15.82867,2403.4,2402.2,1.0208]
[1750440864502,11.81602503,2403.3,2403.0,4.16133709]
[1750440864809,11.81601508,2403.2,2402.4,0.0619]
[1750440864982,11.761,2403.1,2402.6,4.16202633]
[1750440865184,0.05202207,2403.0,2402.4,0.0619]
[1750440865486,0.05202207,2403.0,2402.5,4.16224157]
[1750440865829,11.74,2403.9,2403.1,0.0619]
[1750440866006,0.05201428,2403.8,2403.1,0.0619]
[1750440866184,11.731,2403.7,2403.1,0.0619]
[1750440866383,0.05201428,2403.6,2403.1,4.22318929]
[1750440866611,1.64633258,2403.6,2403.1,4.22318929]
[1750440866817,13.35733258,2403.6,2403.1,4.22310639]
[1750440866993,5.82867,2404.6,2403.0,4.16146483]
[1750440867197,4.15970822,2404.1,2403.1,0.0619]
[1750440867394,0.0520064,2404.0,2403.5,4.16049829]
[1750440867593,0.0520064,2404.0,2403.5,4.16055911]
[1750440867798,5.82867,2404.8,2403.7,4.16009059]
[1750440868122,4.357,2405.6,2403.6,0.0619]
[1750440868123,0.99150716,2404.7,2403.6,0.0619]
[1750440868330,0.35665,2404.6,2403.7,4.16025294]
[1750440868510,0.05199782,2404.5,2403.6,0.0619]
[1750440868685,19.98782529,2404.4,2402.9,0.0619]
[1750440869025,11.72500544,2404.3,2403.4,0.0619]
[1750440869183,14.158956,2404.5,2403.8,4.1599515]
[1750440869384,4.15921474,2404.3,2403.4,4.2226403]
[1750440869682,4.1597762,2404.0,2402.7,0.0619]
[1750440869884,0.05201056,2403.9,2402.7,4.22373147]
[1750440870084,11.30063002,2404.0,2402.7,0.0619]
[1750440870326,0.40873877,2403.9,2402.8,4.16181122]
[1750440870624,1.83177034,2404.4,2403.2,4.1611185]
[1750440870834,0.05200993,2404.3,2403.6,4.16042602]
[1750440871040,11.624,2404.7,2403.9,0.0619]
[1750440871041,0.05199387,2404.6,2403.9,0.0619]
[1750440871200,0.05199387,2404.6,2404.0,4.15973377]
[1750440871514,0.05199387,2404.6,2404.1,4.15948027]
[1750440871515,11.66599387,2404.6,2404.1,4.15948027]
[1750440871726,11.66599387,2404.6,2403.9,4.22173881]
[1750440871727,13.19645976,2404.6,2404.0,4.15964596]
[1750440871884,1.58245976,2404.6,2404.1,4.15946297]
[1750440872080,0.05199364,2404.6,2404.1,4.15946297]
[1750440872310,11.574,2405.1,2404.6,0.0619]
[1750440872483,0.05198336,2405.0,2404.6,0.0619]
[1750440872703,0.05198336,2405.0,2404.9,4.15817705]
[1750440872904,5.82867,2405.7,2405.3,4.15738335]
[1750440873105,4.15727304,2405.5,2404.7,4.15852289]
[1750440873303,0.05197095,2405.5,2405.3,4.15748555]
[1750440873509,0.22795384,2405.9,2405.1,0.0619]
[1750440873713,11.30063002,2405.2,2403.8,0.0619]
[1750440874025,5.82867,2404.7,2403.5,4.16048672]
[1750440874190,5.82867,2404.3,2403.2,4.1611185]
[1750440874393,0.0520055,2404.2,2403.2,0.0619]
[1750440874726,10.0,2404.0,2403.2,0.0619]
[1750440875026,0.05200923,2403.9,2403.4,4.16067445]
[1750440875196,0.05200923,2403.9,2403.2,4.22300229]
[1750440875388,4.63322453,2403.9,2403.2,4.22300229]
[1750440876020,0.47318505,2403.9,2403.2,0.0619]
[1750440876223,4.16022638,2403.8,2403.2,4.22299383]
[1750440876502,4.16022638,2403.8,2402.8,0.9946]
[1750440876503,4.16060285,2403.5,2402.9,4.16161789]
[1750440876709,0.05201637,2403.4,2402.9,4.16153993]
[1750440877116,11.47,2403.9,2402.8,0.0619]
[1750440877428,5.35905432,2403.8,2402.8,0.0619]
[1750440877622,1.147,2403.8,2403.3,4.16082947]
[1750440877790,0.05201295,2404.1,2402.8,4.16181122]
[1750440877991,4.16000115,2403.9,2403.2,4.16100996]
[1750440878192,4.16069312,2403.5,2402.8,4.16168071]
[1750440878451,0.05201399,2403.4,2403.2,4.16098818]
[1750440878713,0.05201051,2403.8,2402.7,0.0619]
[1750440878898,0.05201051,2403.8,2402.8,4.16181122]
[1750440879099,10.0,2404.1,2402.5,4.16218266]
[1750440879100,0.05200985,2404.0,2403.0,4.16146483]
[1750440879305,15.6327983,2404.0,2403.4,4.16069263]
[1750440879501,11.421,2404.0,2403.5,4.16056993]
[1750440879692,13.13775738,2404.0,2402.9,0.0619]
[1750440879888,13.12775738,2404.0,2403.4,4.16066392]
[1750440880326,0.1498,2404.6,2403.6,0.0619]
[1750440880490,0.1498,2404.6,2403.9,4.15979154]
[1750440880694,4.15906404,2404.4,2403.8,4.16006239]
[1750440880894,0.05200012,2404.3,2403.7,4.16009542]
[1750440881215,0.05200012,2404.3,2403.6,4.22223522]
[1750440881414,0.05200012,2404.3,2403.6,0.0619]
[1750440881415,1.61170531,2404.3,2403.6,0.0619]
[1750440881616,0.05200012,2404.3,2403.9,0.0619]
[1750440881821,0.1498,2405.3,2404.3,4.22111474]
[1750440882025,0.1498,2405.3,2404.3,1.088]
[1750440882221,0.05198449,2405.5,2405.2,0.0619]
[1750440882397,4.15783723,2405.1,2404.5,4.15884893]
[1750440882597,0.46776992,2405.0,2404.3,0.0619]
[1750440882798,0.41358499,2405.5,2404.1,11.30063002]
[1750440882996,0.05197628,2405.4,2405.0,4.15794456]
[1750440883210,0.1498,2405.7,2404.8,0.0619]
[1750440883211,0.05197087,2405.6,2404.8,0.0619]
[1750440883497,0.1498,2405.7,2404.1,0.0619]
[1750440883498,11.38097087,2405.5,2404.1,0.0619]
[1750440883839,11.329,2405.5,2404.6,0.0619]
[1750440884041,4.15784258,2405.1,2404.6,0.0619]
[1750440884198,0.05198297,2405.0,2404.8,0.0619]
[1750440884532,4.1582932,2404.9,2404.3,4.22111325]
[1750440884842,0.05198667,2404.8,2404.2,0.0619]
[1750440885139,22.58963002,2404.7,2403.7,0.0619]
[1750440885298,27.75868618,2404.6,2403.5,4.16047353]
[1750440885634,4.15907395,2404.4,2403.6,0.0619]
[1750440885834,0.05199771,2404.3,2403.6,0.0619]
[1750440885997,0.05200096,2404.5,2403.4,4.16069456]
[1750440886331,4.15986297,2404.0,2402.7,0.0619]
[1750440886542,4.15986297,2404.0,2402.8,0.34742076]
[1750440886543,4.16155191,2403.0,2402.8,0.34742076]
[1750440886840,11.33003294,2402.9,2402.8,0.34742076]
[1750440887043,11.278,2402.9,2402.8,0.34742076]
[1750440887227,15.43963802,2402.9,2402.8,0.34742076]
[1750440887431,21.26830802,2402.9,2402.8,0.34742076]
[1750440887638,23.62171769,2402.9,2402.8,0.34742076]
[1750440887849,34.03173183,2402.9,2402.8,0.34742076]
[1750440888341,34.24794475,2402.9,2402.8,0.34742076]
[1750440888559,34.79771379,2402.9,2402.8,0.34742076]
[1750440889052,34.79771379,2402.9,2400.8,4.16526042]
[1750440889053,0.1498,2402.5,2401.0,4.16479247]
[1750440889223,30.08607577,2402.9,2399.4,4.17269377]
[1750440889224,11.30063002,2401.3,2400.3,0.0619]
[1750440889424,2.6418,2402.0,2400.3,0.0619]
[1750440889425,0.1498,2402.0,2400.3,0.0619]
[1750440889610,0.1498,2402.0,2401.9,4.16337066]
[1750440889611,0.34561487,2402.0,2401.9,4.16337066]
[1750440889807,0.34561487,2402.0,2401.9,4.22527066]
[1750440890321,0.34561487,2402.0,2401.2,0.0619]
[1750440890633,0.34561487,2402.0,2401.6,4.16377541]
[1750440890828,0.34561487,2402.0,2401.8,4.16350275]
[1750440891037,0.34561487,2402.0,2401.7,4.22554142]
[1750440891209,0.34561487,2402.0,2401.7,0.0619]
[1750440891633,5.88071315,2401.9,2401.2,0.0619]
[1750440891832,0.34561487,2402.0,2401.9,0.0619]
[1750440892528,0.34561487,2402.0,2401.9,4.22527066]
[1750440892723,0.30391487,2402.0,2401.9,4.22527066]
[1750440892914,0.09601487,2402.0,2401.9,6.08695061]
[1750440893109,0.09601487,2402.0,2401.9,5.18617066]
[1750440893518,0.09601487,2402.0,2401.9,4.16337066]
[1750440893719,0.0520371,2402.6,2401.9,4.16337066]
[1750440893942,0.0520371,2402.6,2401.8,4.16342647]
[1750440893943,0.32411008,2402.5,2401.8,4.16342647]
[1750440894149,0.32411008,2402.5,2402.4,4.16250416]
[1750440896742,0.32411008,2402.5,2401.9,1.0458]
[1750440896939,0.32411008,2402.5,2401.5,4.16391364]
[1750440897114,0.32411008,2402.5,2401.8,4.16342326]
[1750440897115,0.05202969,2402.4,2401.8,4.16342326]
[1750440897319,0.05202969,2402.4,2401.7,4.16370787]
[1750440897636,0.05202969,2402.4,2401.8,4.16354006]
[1750440897835,0.05202969,2402.4,2401.6,4.16389073]
[1750440898037,0.32411008,2402.5,2401.4,1.0458]
[1750440898251,0.052039,2402.4,2402.1,4.16292587]
[1750440898555,0.052039,2402.4,2401.9,4.16324671]
[1750440898717,0.0595,2402.3,2401.9,4.16324671]
[1750440898919,0.0595,2402.3,2401.8,4.16345634]
[1750440899148,0.0595,2402.3,2401.4,1.0458]
[1750440899348,0.0595,2402.3,2400.8,4.16527311]
[1750440899349,0.38371706,2402.3,2401.6,4.16386573]
[1750440899514,0.3762604,2402.2,2401.0,1.0458]
[1750440899711,0.3762604,2402.2,2400.6,1.0158]
[1750440899712,10.47401706,2402.1,2400.6,1.0158]
[1750440899911,11.36013002,2401.9,2400.6,1.0158]
[1750440900115,0.32421706,2401.8,2401.7,4.16371736]
[1750440900315,0.32421706,2401.8,2401.5,4.16394608]
[1750440900515,0.1498,2401.5,2399.7,1.0158]
[1750440900816,4.16474073,2401.2,2399.8,4.16701391]
[1750440901042,3.96135142,2401.5,2399.9,11.30063002]
[1750440901216,0.32421706,2401.8,2400.7,11.30063002]
[1750440901558,0.0595,2401.5,2400.4,1.0342]
[1750440901716,0.0595,2401.3,2400.4,1.0342]
[1750440901919,4.16524921,2400.9,2399.6,1.0378]
[1750440902174,5.97847,2400.7,2399.4,0.005]
[1750440902454,5.82867,2400.0,2399.4,0.005]
[1750440902616,0.0595,2399.5,2399.4,0.005]
[1750440902816,4.2270349,2399.5,2399.4,0.005]
[1750440903046,0.11160437,2399.5,2399.4,0.005]
[1750440903254,0.11160437,2399.5,2398.2,1.0326]
[1750440903416,0.11160437,2399.5,2398.2,0.52027189]
[1750440903417,10.1498,2399.3,2398.2,0.52027189]
[1750440903610,10.1498,2399.3,2397.8,1.0326]
[1750440903611,0.1116037,2399.2,2397.8,1.0326]
[1750440903865,10.0595,2399.0,2397.9,4.17018649]
[1750440904074,11.30711936,2398.9,2398.1,4.16996623]
[1750440904275,10.1498,2398.6,2397.4,10.05654193]
[1750440904422,10.1498,2398.6,2397.4,11.06219612]
[1750440904423,0.05212917,2398.5,2397.4,11.06219612]
[1750440904619,0.05212917,2398.5,2397.4,9.02394193]
[1750440904620,15.82867,2398.2,2397.4,9.02394193]
[1750440904817,0.0595,2397.9,2397.4,9.02394193]
[1750440905050,0.05214286,2397.8,2397.0,0.025]
[1750440905289,17.14117,2397.7,2397.0,0.025]
[1750440905554,0.0595,2397.6,2397.0,0.025]
[1750440905757,0.0595,2397.4,2397.0,0.025]
[1750440905915,0.0595,2397.3,2397.0,0.025]
[1750440906118,0.1498,2397.1,2397.0,0.025]
[1750440906318,0.2093,2397.1,2397.0,0.025]
[1750440906834,0.1498,2397.5,2397.0,0.025]
[1750440907035,0.0595,2397.4,2397.3,4.17134471]
[1750440907230,0.0595,2397.4,2397.1,4.17159828]
[1750440907461,0.1498,2398.3,2397.1,0.41965983]
[1750440907618,0.1498,2398.3,2397.0,0.025]
[1750440907619,0.0595,2398.1,2397.0,0.025]
[1750440907818,0.05214435,2398.0,2397.6,4.17068163]
[1750440908029,0.1498,2398.3,2397.0,0.025]
[1750440908030,0.05213661,2398.2,2397.2,4.17153345]
[1750440908317,0.05213661,2398.2,2397.0,0.025]
[1750440908660,4.17014178,2398.0,2397.2,4.1714077]
[1750440908822,6.82532086,2397.9,2397.2,4.17138101]
[1750440909016,6.82532086,2397.9,2397.0,0.025]
[1750440909017,10.0,2397.8,2397.0,0.025]
[1750440909358,0.0595,2397.6,2397.0,0.025]
[1750440909535,10.0595,2397.4,2397.0,0.025]
[1750440909753,0.0595,2397.2,2397.0,0.025]
[1750440909952,0.05215803,2397.1,2397.0,0.025]
[1750440910157,0.11165803,2397.1,2397.0,0.025]
[1750440910352,4.2833655,2397.1,2397.0,0.025]
[1750440910770,11.30063002,2397.5,2397.0,0.025]
[1750440910771,0.0595,2397.7,2397.0,0.025]
[1750440911081,0.11164536,2397.7,2397.0,0.025]
[1750440911388,11.30063002,2397.3,2397.0,0.025]
[1750440911551,0.376272,2397.2,2397.1,4.17170747]
[1750440911758,0.32411008,2397.2,2397.1,4.17170747]
[1750440912177,0.1735,2398.1,2397.2,4.17139892]
[1750440912356,0.1735,2398.1,2397.0,0.025]
[1750440912357,0.0595,2397.9,2397.0,0.025]
[1750440912679,0.11164673,2398.0,2397.0,11.32563002]
[1750440913068,0.0595,2398.4,2397.3,1.0104]
[1750440913267,0.0595,2398.2,2397.6,4.17081255]
[1750440913500,0.0595,2398.3,2398.0,4.17010742]
[1750440913681,0.11162677,2398.3,2398.0,4.16999676]
[1750440913978,0.114,2399.2,2398.0,0.83404311]
[1750440914176,0.05210587,2399.1,2399.0,4.1684035]
[1750440914344,0.114,2400.1,2399.1,1.0104]
[1750440914544,0.05208273,2399.9,2399.2,11.30063002]
[1750440914845,0.114,2400.1,2399.9,4.16684028]
[1750440915050,0.5595,2400.0,2398.5,1.0365]
[1750440915273,0.5,2400.0,2399.4,15.46828716]
[1750440915489,0.5,2400.0,2399.9,4.16684028]
[1750440916746,0.114,2401.8,2400.0,1.0069]
[1750440917058,13.09444398,2404.0,2401.7,11.30063002]
[1750440917059,0.114,2402.9,2401.7,11.30063002]
[1750440917263,0.0595,2403.4,2401.6,0.005]
[1750440917264,0.0595,2403.4,2402.5,11.30063002]
[1750440917866,0.0595,2403.4,2402.2,1.0069]
[1750440918066,0.0520144,2403.3,2402.9,4.16163802]
[1750440918391,0.05202316,2403.3,2402.4,4.16250416]
[1750440918564,0.0595,2403.8,2402.3,15.46324996]
[1750440918885,0.05202036,2403.7,2402.2,1.0069]
[1750440919094,4.16056344,2403.6,2402.8,4.16170584]
[1750440919257,0.0616027,2403.0,2401.8,11.30063002]
[1750440919452,0.0616027,2403.0,2401.7,12.36473002]
[1750440919700,0.0616027,2403.0,2401.9,4.16327377]
[1750440919701,10.0,2402.8,2401.9,4.16327377]
[1750440919884,0.05203812,2402.7,2401.5,4.16399856]
[1750440920197,0.11363199,2403.0,2401.7,11.30063002]
[1750440920350,5.82867,2402.9,2401.5,11.30063002]
[1750440920551,4.16260992,2402.4,2401.6,4.16386363]
[1750440920869,0.05204495,2402.3,2401.8,4.16339069]
[1750440921067,4.21443435,2402.5,2401.7,4.16358242]
[1750440921376,0.0595,2402.6,2401.2,1.0426]
[1750440921576,0.0595,2402.3,2400.7,1.0294]
[1750440921900,0.05205005,2402.2,2401.5,4.16402947]
[1750440922104,0.05205005,2402.2,2401.0,11.30063002]
[1750440922259,0.05205005,2402.2,2401.2,4.16453894]
[1750440922459,0.05205005,2402.2,2401.6,4.16374487]
[1750440922686,4.21503411,2402.2,2401.0,4.16493127]
[1750440922860,1.55195341,2402.1,2400.7,1.0294]
[1750440923058,1.55195341,2402.1,2400.1,15.0103389]
[1750440923059,25.82867,2401.7,2400.2,4.16628411]
[1750440923288,4.30274224,2401.5,2400.7,4.16532116]
[1750440923468,4.30274224,2401.5,2400.1,26.19263002]
[1750440923469,0.11156401,2401.4,2400.1,26.19263002]
[1750440923671,0.11156401,2401.4,2400.8,4.16517162]
[1750440923962,0.0595,2401.3,2400.9,0.3476957]
[1750440924502,1.55195341,2402.1,2401.2,4.16453499]
[1750440924503,0.05205996,2402.0,2401.2,4.16453499]
[1750440924661,0.05205996,2402.0,2401.3,0.34763778]
[1750440924857,4.0541027,2403.0,2401.3,0.34763778]
[1750440924858,0.1386,2402.6,2401.8,11.30063002]
[1750440925061,0.0021027,2403.0,2402.2,11.30063002]
[1750440925366,0.0021027,2403.0,2402.4,4.1624344]
[1750440925559,0.0021027,2403.0,2402.9,4.16163802]
[1750440925761,0.0021027,2403.0,2402.8,4.16179617]
[1750440926004,0.0021027,2403.0,2402.9,4.16163802]
[1750440926690,0.0021027,2403.0,2402.9,4.99898098]
[1750440926874,0.1386,2404.2,2403.5,11.30063002]
[1750440927074,0.1386,2404.7,2403.5,11.30063002]
[1750440927305,0.1386,2404.7,2403.6,5.12279631]
[1750440927510,4.15768179,2405.2,2403.6,5.12274829]
[1750440927511,4.15767971,2405.2,2403.6,5.12274829]
[1750440927722,0.47352884,2405.1,2404.5,4.15884545]
[1750440927868,0.47352884,2405.1,2404.5,4.15877825]
[1750440927869,0.42153797,2405.1,2404.5,4.15877825]
[1750440928066,4.15827555,2404.9,2404.0,4.15961661]
[1750440928393,0.3602498,2405.4,2404.0,11.30063002]
[1750440928628,0.3602498,2405.4,2404.9,4.15806279]
[1750440928769,0.2216498,2405.4,2405.2,4.15751244]
[1750440928973,0.2216498,2405.4,2405.1,4.15781816]
[1750440929173,0.2216498,2405.4,2404.6,1.0037]
[1750440929372,0.2216498,2405.4,2405.2,4.15756566]
[1750440929616,0.2216498,2405.4,2404.6,1.0037]
[1750440929797,0.2216498,2405.4,2404.6,5.16238283]
[1750440930012,0.2216498,2405.4,2404.8,4.15820061]
[1750440930171,0.2216498,2405.4,2404.6,1.0037]
[1750440930383,0.2216498,2405.4,2404.3,4.15921474]
[1750440930576,0.2216498,2405.4,2404.1,11.30063002]
[1750440930577,0.05197765,2405.3,2404.7,4.158375]
[1750440930784,0.05197765,2405.3,2404.4,0.34718957]
[1750440930995,0.1386,2405.2,2404.6,4.15853957]
[1750440931172,0.0577,2405.0,2404.7,0.34714625]
[1750440931382,0.0577,2404.8,2404.7,0.34714625]
[1750440931588,5.22701885,2404.8,2404.7,0.34714625]
[1750440931784,14.15866417,2404.7,2403.9,4.1597967]
[1750440932085,0.05199433,2404.6,2403.4,4.16077223]
[1750440932304,0.1386,2405.2,2404.1,11.30063002]
[1750440932514,0.2216498,2405.4,2403.5,0.34731957]
[1750440932715,0.1096688,2405.3,2403.6,4.16042602]
[1750440933019,4.15792172,2405.1,2404.4,4.15897605]
[1750440933223,0.05198268,2405.0,2404.2,4.15927563]
[1750440933379,0.05198268,2405.0,2403.7,4.50740968]
[1750440933380,0.05198268,2405.0,2404.5,4.15877366]
[1750440933719,0.05198268,2405.0,2404.4,4.15893942]
[1750440933940,10.0,2404.6,2403.7,0.34729068]
[1750440934082,0.1386,2404.9,2403.7,0.34729068]
[1750440934285,0.1386,2404.9,2403.7,11.6479207]
[1750440934510,0.05199003,2405.2,2404.6,4.15866805]
[1750440934683,0.05199003,2405.2,2403.8,11.30063002]
[1750440934894,4.15811455,2405.0,2404.3,4.15921118]
[1750440935090,0.0577,2404.8,2403.8,0.34727623]
[1750440935323,0.05198892,2404.7,2403.8,0.34727623]
[1750440935533,0.1386,2404.5,2403.9,4.1598084]
[1750440935730,4.21117086,2404.4,2403.8,0.34727623]
[1750440936039,0.0577,2404.3,2403.8,0.34727623]
[1750440936225,4.15957213,2404.1,2403.8,0.34727623]
[1750440936425,0.46795981,2404.0,2402.8,4.16181122]
[1750440936588,0.0520026,2404.0,2403.6,4.16034142]
[1750440936790,0.05200493,2404.2,2403.5,4.16052634]
[1750440936992,0.05200493,2404.2,2403.6,4.16031218]
[1750440937223,0.10970493,2404.2,2403.6,4.16026499]
[1750440937398,0.1386,2404.5,2404.1,4.15956075]
[1750440937613,5.82867,2404.0,2402.9,0.3474063]
[1750440937815,14.21916483,2403.0,2402.9,0.3057063]
[1750440937993,4.16293131,2402.2,2401.5,4.16395881]
[1750440938195,11.25503886,2402.1,2401.6,0.34759435]
[1750440938490,0.05204486,2402.0,2401.6,0.34759435]
[1750440938691,4.21533216,2402.0,2401.6,0.34759435]
[1750440938911,1.73247808,2402.0,2401.6,0.34759435]
[1750440939126,11.201,2401.9,2401.6,0.34759435]
[1750440939329,0.1386,2402.0,2401.6,0.34759435]
[1750440939699,0.0577,2401.7,2401.6,0.34759435]
[1750440939901,4.16485032,2401.1,2400.4,4.16596991]
[1750440940102,0.05207067,2401.0,2400.5,0.34775363]
[1750440940330,10.1451,2400.8,2400.5,0.34775363]
[1750440940500,11.25007479,2400.7,2399.6,0.0579]
[1750440940703,0.1451,2400.8,2399.6,0.40578406]
[1750440940908,11.197,2400.7,2399.6,0.40578406]
[1750440941107,0.05208023,2400.6,2400.0,4.16652211]
[1750440941304,17.12930002,2400.5,2399.0,0.0579]
[1750440941503,12.33121,2400.7,2398.4,0.27521371]
[1750440941504,10.0,2399.6,2398.4,0.27521371]
[1750440941721,5.88637,2400.0,2397.9,4.023]
[1750440941722,0.1451,2399.4,2398.5,0.34804361]
[1750440942010,10.0,2399.2,2398.5,0.34804361]
[1750440942222,10.0,2398.9,2398.5,0.34804361]
[1750440942414,10.0,2398.6,2398.5,0.34804361]
[1750440942655,0.1451,2399.4,2398.6,4.16909864]
[1750440942808,0.56913605,2400.0,2398.7,0.0579]
[1750440943006,0.42403605,2400.0,2399.3,0.0579]
[1750440943239,0.42403605,2400.0,2399.9,4.22474028]
[1750440943563,0.1971712,2401.0,2399.9,0.0579]
[1750440943703,11.49780122,2401.0,2399.2,0.0579]
[1750440943904,5.82867,2400.5,2399.2,0.0579]
[1750440944125,0.05208519,2400.4,2399.4,4.16759806]
[1750440944334,4.31160969,2400.1,2399.3,4.16776564]
[1750440944541,10.55,2399.8,2398.2,0.0579]
[1750440944705,10.0,2399.4,2398.2,0.0579]
[1750440944904,15.82867,2399.2,2397.8,0.0579]
[1750440945149,1.637867,2399.7,2399.2,4.16791251]
[1750440945435,4.16677647,2400.0,2398.5,0.34513859]
[1750440945436,11.24810018,2399.6,2399.1,4.16822443]
[1750440945603,15.36340337,2399.6,2398.8,4.16866322]
[1750440945807,0.0577,2399.7,2398.4,0.0579]
[1750440946004,11.194,2399.7,2398.5,4.16927246]
[1750440946204,11.194,2399.7,2398.4,0.0579]
[1750440946205,0.05209711,2399.6,2399.1,4.16821998]
[1750440946406,0.05209711,2399.6,2398.4,0.0579]
[1750440946641,1.17670682,2399.6,2398.7,4.16882736]
[1750440946816,5.82867,2399.5,2398.6,4.16895968]
[1750440947016,10.0,2399.3,2398.4,0.05389174]
[1750440947356,4.31333002,2399.1,2398.4,4.1693488]
[1750440947559,4.31333002,2399.1,2398.2,4.16975685]
[1750440947560,0.05211449,2399.0,2397.9,4.17031569]
[1750440947867,0.05211449,2399.0,2397.9,1.54759457]
[1750440948023,1.12460971,2399.6,2397.9,1.54759457]
[1750440948024,0.05210478,2399.4,2398.2,11.30063002]
[1750440948225,0.05210139,2399.5,2398.9,4.16846213]
[1750440948535,0.05210139,2399.5,2398.0,0.0579]
[1750440948748,0.05210139,2399.5,2398.1,4.16996789]
[1750440949033,10.0,2399.3,2398.1,4.16985569]
[1750440949236,10.0,2398.9,2398.3,4.16958846]
[1750440949433,0.05211993,2398.8,2397.5,1.0747]
[1750440949647,10.1451,2398.7,2397.6,4.17081652]
[1750440949859,4.16938531,2398.5,2397.8,4.17048365]
[1750440950039,0.05212971,2398.4,2397.5,0.0579]
[1750440950348,10.0,2398.2,2397.0,1.0467]
[1750440950527,0.05213709,2398.1,2397.0,5.21855905]
[1750440950747,11.191,2398.4,2397.0,1.0467]
[1750440950966,11.191,2398.4,2397.0,0.025]
[1750440950967,4.17048961,2397.8,2397.0,0.025]
[1750440951130,0.052151,2397.8,2397.0,0.0829]
[1750440951324,0.1451,2398.6,2397.8,0.0579]
[1750440951623,0.1451,2399.1,2398.0,4.17014178]
[1750440951871,0.1451,2399.1,2399.0,4.1684035]
[1750440952024,4.1675001,2399.6,2398.7,0.0579]
[1750440952234,0.1451,2399.7,2398.7,0.0579]
[1750440952429,0.1451,2399.7,2399.1,4.16811369]
[1750440952724,0.1451,2399.7,2398.7,0.0579]
[1750440952924,0.1451,2399.7,2399.2,4.16793906]
[1750440953183,0.1451,2399.7,2398.7,0.0579]
[1750440953184,4.16944126,2398.5,2397.8,1.0583]
[1750440953341,0.05211989,2398.4,2397.5,4.22879299]
[1750440953585,4.16958929,2398.4,2397.5,0.0579]
[1750440953844,20.14425961,2397.8,2396.9,4.17198808]
[1750440954031,31.38795961,2397.8,2396.8,4.17218417]
[1750440954231,31.8056901,2397.8,2396.2,8.16983571]
[1750440954431,4.22618151,2397.0,2396.2,3.99669773]
[1750440954735,20.20117019,2396.3,2396.2,3.99669773]
[1750440954937,23.76864406,2396.3,2396.2,3.99669773]
[1750440955143,23.72694406,2396.3,2396.2,3.79777487]
[1750440955381,26.76894406,2396.3,2396.2,3.79777487]
[1750440955663,35.77005333,2396.3,2396.2,3.79777487]
[1750440955830,47.07068335,2396.3,2396.2,3.79777487]
[1750440956028,35.77005333,2396.3,2396.2,3.79777487]
[1750440956224,31.86068335,2396.3,2396.2,3.79777487]
[1750440956538,50.11368335,2396.3,2396.2,3.79777487]
[1750440956852,51.78566078,2396.3,2396.2,3.79777487]
[1750440957035,31.86068335,2396.3,2396.2,3.79777487]
[1750440957240,47.07668335,2396.3,2396.2,3.79777487]
[1750440957461,47.62668335,2396.3,2396.2,3.79777487]
[1750440957882,31.60295314,2396.3,2396.2,3.79777487]
[1750440958168,35.77405333,2396.3,2396.2,3.79777487]
[1750440958366,35.36087019,2396.3,2396.2,3.79777487]
[1750440958673,40.07484762,2396.3,2396.2,3.79777487]
[1750440958832,40.50102906,2396.3,2396.2,0.23736092]
[1750440959171,10.69687019,2396.3,2396.2,0.23736092]
[1750440959334,25.36087019,2396.3,2396.2,0.23736092]
[1750440959532,0.0577,2397.1,2397.0,4.17188151]
[1750440959769,0.0577,2397.1,2397.0,0.0572]
[1750440960065,4.24944455,2398.3,2397.6,0.0572]
[1750440960066,11.184,2398.0,2397.6,0.0572]
[1750440960284,15.82867,2397.8,2396.7,0.0572]
[1750440960435,4.17310019,2396.3,2395.9,3.6]
[1750440960633,0.0577,2394.9,2393.6,4.17769845]
[1750440960877,0.0577,2394.9,2393.5,4.17798203]
[1750440960878,4.17623721,2394.5,2393.0,1.001561]
[1750440961166,4.17623721,2394.5,2391.8,4.1]
[1750440961167,4.18042723,2392.1,2391.8,3.6]
[1750440961369,11.182,2392.0,2391.8,3.6]
[1750440961528,5.88092622,2391.9,2391.8,3.6]
[1750440961736,4.17880099,2393.1,2391.8,3.6]
[1750440961951,4.39101943,2393.6,2391.8,3.35]
[1750440961952,15.82867,2392.8,2391.8,3.35]
[1750440962129,0.55,2392.6,2391.8,3.35]
[1750440962334,0.0522716,2392.5,2391.8,3.35]
[1750440962541,5.82867,2393.4,2391.8,3.35]